[Event "Polish Youth B18 Championship 2023"]
[Site "Jastrzebia Gora"]
[Date "2023.03.13"]
[Round "2.10"]
[White "Czernek, Tymon"]
[Black "Kitewski, Bartosz"]
[Result "1-0"]
[ECO "B90"]
[WhiteElo "2314"]
[BlackElo "1968"]
[Annotator "TA"]
[PlyCount "65"]
[EventDate "2023.03.11"]
[EventType "swiss"]
[EventCountry "POL"]
[SourceTitle "playchess.com"]
[Source "ChessBase"]
[SourceQuality "1"]
[TimeControl "40/5400+30:1800+30"]

{[%evp 10,65,8,-4,6,-2,20,12,29,29,47,47,46,45,79,78,85,16,23,31,24,32,31,10,10,14,14,0,0,0,4,8,8,0,58,58,44,49,92,92,90,66,74,79,141,139,250,244,249,143,745,745,1726,1650,29989,29990,29988,1662]} 1. e4 {[%emt 0:00:03]} c5 {[%emt 0:00:09]} 2. Nf3 {[%emt 0:00:06]} d6 {[%emt 0:00:05]} 3. d4 {[%emt 0:00:04]} cxd4 {[%emt 0:00:04]} 4. Nxd4 {[%emt 0:00:04]} Nf6 {[%emt 0:00:08]} 5. Nc3 {[%emt 0:00:04]} a6 {[%emt 0:00:08]} 6. Rg1 {[%emt 0:00:05]} Nc6 {[%emt 0:08:45] B90: Sicilian Najdorf: Unusual White 6th moves, 6 Be3 Ng4 and 6 Be3 e5.} 7. g4 {[%emt 0:00:48][%cal Bg2g4,Bg4g5][%mdl 32]} Nxd4 {[%emt 0:06:05] 7...h6 is the fancy move.} 8. Qxd4 {[%emt 0:01:50]} e5 {[%emt 0:06:50] The position is equal. has lost popularity (8...Nxg4).} 9. Qd1 {[%emt 0:03:13]} Be6 {[%emt 0:04:41]} 10. g5 {[%emt 0:03:02]} Nd7 {[%emt 0:00:18]} 11. Be3 {[%emt 0:00:16]} Rc8 {[%emt 0:02:18] [#]} 12. Qd2 $146 {[%emt 0:01:57]} ({Predecessor:} 12. Nd5 Nc5 13. f3 h6 14. Qd2 Bxd5 15. exd5 hxg5 16. Bxg5 Be7 17. Bxe7 Qxe7 18. O-O-O {½-½ Parvanyan,A (2380)-Vogel,R (2475) Lueneburg GM 2017 (6)}) 12... Nc5 {[%emt 0:09:26][%cal Oc5e4]} 13. b4 {[%emt 0:14:19]} (13. O-O-O $16) 13... Nd7 $11 {[%emt 0:00:48]} 14. Nd5 {[%emt 0:00:06] Prevents Nb6.} Bxd5 {[%emt 0:09:38]} 15. Qxd5 {[%emt 0:08:19]} Qc7 {[%emt 0:03:29] Repels Bc4. Threatens to win with ...Qc3+.} 16. Bd3 {[%emt 0:00:50]} Nb6 {[%emt 0:08:57]} 17. Bxb6 {[%emt 0:00:39]} Qxb6 {[%emt 0:00:03] Black is weak on the light squares} 18. Ke2 {[%emt 0:00:46]} Be7 {[%emt 0:00:20]} (18... Qxb4 19. Rab1 Qc5 20. Rxb7 (20. Qxb7 Be7 $16) 20... Qxd5 21. exd5 $16) 19. a4 {[%emt 0:11:20][%cal Ba2a4,Ba4a5][%mdl 32]} g6 {[%emt 0:06:08]} (19... Qxb4 20. Rab1 Qxa4 21. Rxb7 $16 (21. Qxb7 Qc6 $11)) 20. a5 {[%emt 0:00:15]} Qc7 {[%emt 0:01:09]} ({Don't take} 20... Qxb4 21. Rab1 Qc5 22. Qxb7 $16 (22. Rxb7 Qxd5 23. exd5 Bd8 $16)) 21. h4 {[%emt 0:04:42]} Qd7 {[%emt 0:02:26]} (21... h6 $11) 22. Rg3 $14 {[%emt 0:11:10]} Rc7 {[%emt 0:06:25] [#]} 23. h5 $1 {[%emt 0:04:39]} Qd8 {[%emt 0:08:17] [#]} (23... gxh5 24. Rh1) 24. Rh1 $1 {[%emt 0:10:45]} Bxg5 {[%emt 0:01:51]} 25. hxg6 {[%emt 0:00:04]} fxg6 {[%emt 0:00:05] [#]} 26. f4 $1 $36 {[%emt 0:04:16][%cal Bf2f4,Bf4f5][%mdl 2080] White has strong initiative.} Bf6 {[%emt 0:01:16]} (26... Bxf4 $2 27. Rxg6 Rf7 28. Bc4 $18 (28. Qxd6 Qxd6 29. Rxd6 Rc7 $11)) ({Better is} 26... Bh4 27. Rgh3 Bf6) 27. f5 $16 {[%emt 0:00:17] White is much more active.} g5 {[%emt 0:01:04]} (27... Bh4 $16 {might work better.} 28. Rgh3 g5) 28. Rh6 $18 {[%emt 0:01:48] Black must now prevent Qe6+.} Qe7 {[%emt 0:00:47]} 29. Kf1 {[%emt 0:02:56]} ({White should try} 29. Bc4 $18) 29... Qf7 $2 {[%emt 0:04:01][%mdl 8192] This costs Black the game.} (29... Kd8 $16) 30. Qxd6 {[%emt 0:00:55]} Rc6 {[%emt 0:07:38]} 31. Qb8+ {[%emt 0:00:07]} Kd7 {[%emt 0:00:11]} 32. Qxb7+ {[%emt 0:00:06]} Rc7 {[%emt 0:00:20]} 33. Qxa6 {[%emt 0:00:28] Weighted Error Value: White=0.10 (very precise) /Black=0.50} (33. Bb5+ $142 axb5 34. Rd3+ Ke8 35. Qb8+ Ke7 36. Qxc7+ Kf8 37. Rxf6 {[%mdl 64] Remove Defender} Qxf6 38. Rd7) 1-0

[Event "Polish Youth B18 Championship 2023"]
[Site "Jastrzebia Gora"]
[Date "2023.03.13"]
[Round "2.11"]
[White "Lis, Maksymilian"]
[Black "Chyzy, Jakub"]
[Result "0-1"]
[ECO "D38"]
[WhiteElo "1784"]
[BlackElo "2250"]
[Annotator "TA"]
[PlyCount "64"]
[EventDate "2023.03.11"]
[EventType "swiss"]
[EventCountry "POL"]
[SourceTitle "playchess.com"]
[Source "ChessBase"]
[SourceQuality "1"]
[TimeControl "40/5400+30:1800+30"]

{[%evp 13,64,2,7,-33,-39,-33,-23,-42,-10,-34,-10,-24,-24,-58,-52,-65,-56,-53,-44,-266,-280,-256,-133,-120,-127,-118,-8,0,0,0,0,0,0,-14,0,-14,-12,-24,172,42,167,173,193,47,58,-102,-93,-93,-5,-870,-858,-1513,-593]} 1. d4 {[%emt 0:00:07]} Nf6 {[%emt 0:00:03]} 2. Nf3 {[%emt 0:00:07]} e6 {[%emt 0:00:04]} 3. c4 {[%emt 0:00:14]} d5 {[%emt 0:07:04]} 4. Nc3 {[%emt 0:00:13]} Bb4 {[%emt 0:04:08]} 5. Bd2 {[%emt 0:03:02]} O-O {[%emt 0:00:24]} 6. e3 {[%emt 0:00:07]} b6 {[%emt 0:02:09]} 7. cxd5 {[%emt 0:03:07]} exd5 {[%emt 0:00:34]} 8. Qa4 {[%emt 0:14:02] E51: Nimzo-Indian: Rubinstein: 4...0-0 5 Nf3 d5.} Bd6 {[%emt 0:09:08] [#]} 9. Bd3 $146 {[%emt 0:12:02]} ({Predecessor:} 9. b4 c6 10. Bd3 Bb7 11. Rb1 Nbd7 12. O-O Re8 13. Qc2 Qe7 14. Ne2 Ne4 15. Be1 Ndf6 {0-1 Schuh,R (2026)-Sieber,F (2236) Oberliga Ost-A 1617 2016 (11.7)}) 9... a6 {[%emt 0:01:26]} 10. h3 {[%emt 0:02:30] Black has an edge.} Re8 {[%emt 0:02:51]} 11. O-O {[%emt 0:04:45]} Bb7 {[%emt 0:00:50]} 12. Ne2 {[%emt 0:11:51]} Nbd7 {[%emt 0:09:29]} 13. Bb4 {[%emt 0:14:23]} c5 {[%emt 0:01:01]} 14. dxc5 {[%emt 0:00:07]} bxc5 {[%emt 0:07:49]} 15. Ba5 {[%emt 0:00:13]} Qe7 {[%emt 0:01:52][%cal Od5d4]} 16. Bc3 $2 {[%emt 0:08:10] [#]} (16. Rfe1 $15) 16... d4 $1 $19 {[%emt 0:04:17][%mdl 512]} 17. exd4 {[%emt 0:00:06] [#]} Bxf3 {[%emt 0:00:27]} (17... Nb6 $1 $19 {[%cal Rb6a4]} 18. Qb3 c4 19. Bxc4 (19. Bxh7+ $2 Nxh7 20. Qxb6 Bxf3 $19) 19... Nxc4 20. Qxc4 Rac8) 18. gxf3 $17 {[%emt 0:00:05]} Nd5 {[%emt 0:39:16] ...Qg5+ would be deadly.} 19. Bd2 {[%emt 0:11:03] Inhibits Qg5+.} Qe6 {[%emt 0:03:54]} ({Black should try} 19... N7b6 $17 20. Qb3 c4 21. Bxc4 Nxc4 22. Qxc4 Nb6) 20. Kg2 $11 {[%emt 0:01:35]} cxd4 {[%emt 0:01:07]} 21. Qxd4 {[%emt 0:03:33]} Be5 {[%emt 0:02:07]} 22. Qg4 {[%emt 0:01:17]} Qd6 {[%emt 0:00:45] Threatens to win with ...N5f6.} 23. Rad1 {[%emt 0:06:48]} N5f6 {[%emt 0:00:39]} 24. Bb4 {[%emt 0:01:01] A strong pair of Bishops.} Qb6 {[%emt 0:00:20] Dancing on a razor blade.} 25. Qh4 {[%emt 0:00:56]} (25. Qc4 $5) 25... g5 $2 {[%emt 0:00:07]} (25... Bxb2 $11 {and Black is okay.} 26. Bd6 Be5) 26. Qxg5+ $18 {[%emt 0:00:06]} Kh8 {[%emt 0:00:02] ...Rg8 is the strong threat.} 27. Qh4 {[%emt 0:00:21]} Rg8+ {[%emt 0:00:22]} 28. Kh1 {[%emt 0:00:34]} (28. Ng3 $18) 28... Qb7 $14 {[%emt 0:00:10][%cal Rb7f3]} 29. Ng3 $2 {[%emt 0:01:06]} ({Not} 29. Ng1 $2 Rxg1+ 30. Kxg1 Rg8+ $19) (29. Be4 $14 Qxb4 30. Rxd7) 29... Qxf3+ $17 {[%emt 0:00:09]} 30. Kh2 {[%emt 0:00:06] [#]} Rab8 {[%emt 0:01:51] Black is much more active.} ({Resist} 30... Bxb2 31. Bxh7 Nxh7 32. Rxd7 $14) (30... Rae8 $1 $17) 31. Rd2 $2 {[%emt 0:01:46][%mdl 8192] [#]} (31. Bc3 $11) 31... Rxb4 $1 $19 {[%emt 0:00:50][%mdl 576] Deflection} 32. Qxb4 {[%emt 0:00:35]} (32. Be2 Qxf2+) 32... Bxg3+ {[%emt 0:00:31] Never resign too early! Excellently played by Chyzy!   Weighted Error Value: White=0.61/Black=0.34} (32... Nh5 $142 33. Qh4 Rxg3 34. fxg3 Bxg3+ 35. Qxg3 Qxg3+ 36. Kh1 Qxh3+ 37. Kg1 Qe3+ 38. Rdf2 Qxd3) 0-1

[Event "Polish Youth B18 Championship 2023"]
[Site "Jastrzebia Gora"]
[Date "2023.03.13"]
[Round "2.12"]
[White "Ochedzan, Tymon"]
[Black "Kossowski, Pawel"]
[Result "1-0"]
[ECO "B40"]
[WhiteElo "2240"]
[BlackElo "1766"]
[Annotator "TA"]
[PlyCount "65"]
[EventDate "2023.03.11"]
[EventType "swiss"]
[EventCountry "POL"]
[SourceTitle "playchess.com"]
[Source "ChessBase"]
[SourceQuality "1"]
[TimeControl "40/5400+30:1800+30"]

{[%evp 19,65,21,18,0,16,0,0,-2,0,0,0,0,11,0,0,0,0,0,0,0,0,0,0,0,15,7,63,47,114,107,215,203,209,209,183,175,828,303,308,305,368,347,327,314,2369,2159,1775,1689]} 1. e4 {[%emt 0:00:03]} c5 {[%emt 0:00:10]} 2. Nf3 {[%emt 0:00:19]} e6 {[%emt 0:00:06]} 3. g3 {[%emt 0:02:01]} d5 {[%emt 0:02:51]} 4. exd5 {[%emt 0:01:25]} exd5 {[%emt 0:00:44]} 5. d4 {[%emt 0:01:27]} Nc6 {[%emt 0:02:17]} 6. Bg2 {[%emt 0:04:02]} Nf6 {[%emt 0:05:54]} 7. O-O {[%emt 0:00:28]} Bg4 {[%emt 0:05:08]} 8. c3 {[%emt 0:08:23]} cxd4 {[%emt 0:07:00]} 9. cxd4 {[%emt 0:00:22]} Be7 {[%emt 0:08:59]} 10. Nc3 {[%emt 0:08:42]} O-O {[%emt 0:02:22]} 11. h3 {[%emt 0:04:02] D33: Tarrasch Defence: 6 g3 sidelines.} Bf5 {[%emt 0:08:19] [#]} 12. Re1 $146 {[%emt 0:04:04]} ({Predecessor:} 12. Ne5 Be4 13. Nxe4 Nxe4 14. Be3 Rc8 15. Qb3 Na5 16. Qd3 f6 17. Nf3 Nc4 18. Nd2 Nxb2 {1-0 Safin,R (2259)-Hartikainen,J (2142) Titled Tuesday intern op 18th May blitz 2021 (9)}) 12... Ne4 {[%emt 0:06:28]} 13. Qb3 {[%emt 0:06:42] The position is equal.} Nxc3 {[%emt 0:09:51]} 14. bxc3 {[%emt 0:00:07]} Na5 $1 {[%emt 0:02:41]} 15. Qa4 {[%emt 0:02:00][%cal Oe1e7] Rxe7! is the strong threat.} Be4 {[%emt 0:01:58]} 16. Nd2 {[%emt 0:10:10]} Bxg2 {[%emt 0:02:05]} 17. Kxg2 {[%emt 0:00:06][%cal Oe1e7] Rxe7! would be deadly.} b6 {[%emt 0:02:50]} 18. Ba3 {[%emt 0:02:27]} Re8 {[%emt 0:05:31]} 19. Bb4 {[%emt 0:07:52]} Bxb4 {[%emt 0:01:56]} 20. cxb4 {[%emt 0:01:41]} Nc4 {[%emt 0:00:48]} 21. Nf3 {[%emt 0:02:17]} a6 {[%emt 0:02:41]} 22. Qc6 {[%emt 0:02:27]} Rxe1 {[%emt 0:08:25]} (22... Rf8 $11) 23. Rxe1 $14 {[%emt 0:00:05][%cal Ba1e1,Be1e7,Be7d7][%mdl 32]} a5 {[%emt 0:05:09] [#]} (23... g6 $14) 24. Re7 $3 $16 {[%emt 0:05:40][%mdl 576] aiming for Rd7. Deflection. White is much more active.} Rc8 {[%emt 0:03:52]} (24... axb4 $16 25. Rd7 Qe8) (24... h6 25. Rd7) 25. Rd7 $18 {[%emt 0:00:57]} Qe8 {[%emt 0:00:23]} 26. Qxd5 {[%emt 0:03:33] Threatens to win with Ng5.} h6 {[%emt 0:01:44] Wards off Ng5} 27. b5 {[%emt 0:02:07]} Qf8 $2 {[%emt 0:02:23]} (27... a4 28. Nh4 Qe6 29. Qxe6 fxe6) 28. a4 $2 {[%emt 0:00:58]} (28. Nh4) 28... Qe8 {[%emt 0:00:16]} 29. h4 {[%emt 0:01:33][%cal Bh3h4,Bh4h5][%mdl 32]} Qf8 {[%emt 0:00:15]} 30. h5 {[%emt 0:01:11] And now Nh4 would win.} Qe8 {[%emt 0:00:07]} 31. Nh4 {[%emt 0:01:27]} Nb2 $2 {[%emt 0:02:06]} (31... Qe6 32. Qxe6 fxe6) 32. Ng6 {[%emt 0:01:30] Black must now prevent Ne7+.} Rb8 {[%emt 0:00:22]} 33. Re7 {[%emt 0:00:18] Weighted Error Value: White=0.27 (precise) /Black=0.22 (precise)} 1-0

[Event "Polish Youth B18 Championship 2023"]
[Site "Jastrzebia Gora"]
[Date "2023.03.13"]
[Round "2.13"]
[White "Madajczak, Piotr"]
[Black "Kacprzak, Karol"]
[Result "1/2-1/2"]
[ECO "A25"]
[WhiteElo "1897"]
[BlackElo "2221"]
[Annotator "TA"]
[PlyCount "86"]
[EventDate "2023.03.11"]
[EventType "swiss"]
[EventCountry "POL"]
[SourceTitle "playchess.com"]
[Source "ChessBase"]
[SourceQuality "1"]
[TimeControl "40/5400+30:1800+30"]

{[%evp 9,86,12,18,17,28,25,25,18,21,7,15,19,15,0,0,0,0,0,0,0,0,0,0,0,0,0,0,0,34,-14,0,-11,-19,-25,0,0,26,19,24,0,14,19,22,10,26,31,44,-213,58,42,58,60,79,98,93,88,197,213,195,133,113,124,116,16,0,0,13,0,0,0,0,0,0,0,0,0,0,0,0]} 1. c4 {[%emt 0:00:03]} e5 {[%emt 0:00:15]} 2. Nc3 {[%emt 0:00:17]} Nc6 {[%emt 0:00:07]} 3. g3 {[%emt 0:00:30]} Bc5 {[%emt 0:00:10]} 4. Bg2 {[%emt 0:00:44]} d6 {[%emt 0:00:30]} 5. e3 {[%emt 0:00:53]} a6 {[%emt 0:00:12]} 6. Nge2 {[%emt 0:00:21] A25: English Opening vs King's Indian with ...Nc6 but without early d3.} Ba7 {[%emt 0:00:08]} 7. d3 {[%emt 0:04:08]} h5 {[%emt 0:01:23]} 8. h4 {[%emt 0:00:59] White has an edge.} Bg4 {[%emt 0:11:54] [#]} 9. Rb1 $146 {[%emt 0:04:24]} ({Predecessor:} 9. a3 Qd7 10. b4 Nge7 11. Bb2 Rb8 12. Rc1 O-O 13. Qd2 b5 14. Ne4 f6 15. O-O {1-0 Movsziszian,K (2485)-Karim,I (2361) Sitges op 43rd 2017 (5)}) 9... Nf6 {[%emt 0:08:12]} 10. b4 {[%emt 0:03:25]} Qd7 {[%emt 0:19:00]} 11. Nd5 {[%emt 0:11:39]} Nxd5 {[%emt 0:10:15]} 12. cxd5 {[%emt 0:00:12]} Ne7 {[%emt 0:00:31]} 13. Qc2 {[%emt 0:08:28]} c6 {[%emt 0:05:11]} 14. dxc6 {[%emt 0:09:44]} bxc6 {[%emt 0:00:26]} 15. Nc3 {[%emt 0:00:39][%cal Be2c3,Bc3e4,Be4g5,Bg5f3][%mdl 32]} O-O {[%emt 0:06:38]} 16. O-O {[%emt 0:01:17]} Bh3 {[%emt 0:08:00]} 17. Ne4 {[%emt 0:02:51]} Bxg2 {[%emt 0:00:39]} 18. Kxg2 {[%emt 0:00:18]} Nf5 {[%emt 0:09:24]} 19. Bd2 {[%emt 0:08:29]} (19. Qe2 $14 {was preferrable.}) 19... Rfe8 {[%emt 0:02:25]} 20. Rbc1 {[%emt 0:11:29]} d5 {[%emt 0:02:33]} 21. Ng5 {[%emt 0:03:11]} f6 {[%emt 0:02:14]} 22. Nf3 {[%emt 0:03:13]} e4 {[%emt 0:02:17]} 23. dxe4 {[%emt 0:04:25]} dxe4 {[%emt 0:00:01]} 24. Nh2 {[%emt 0:01:08]} Re6 {[%emt 0:00:59]} 25. Rfd1 {[%emt 0:00:58]} Qf7 {[%emt 0:01:24]} 26. Qc4 {[%emt 0:04:44]} Bb8 {[%emt 0:01:09]} 27. Qe2 {[%emt 0:04:32]} (27. a4 $5 {[%cal Rb4b5]}) 27... Qg6 {[%emt 0:01:24]} 28. Kh1 $2 {[%emt 0:02:29][%mdl 8192]} (28. Be1 $14 {stays ahead.}) 28... Bc7 $2 {[%emt 0:01:15]} (28... Qxg3 $19 29. fxg3 Nxg3+ 30. Kg2 Nxe2) 29. Be1 $14 {[%emt 0:00:53]} Ne7 {[%emt 0:04:23]} 30. Qc4 {[%emt 0:03:40]} Qf5 {[%emt 0:01:14]} 31. Rd7 {[%emt 0:00:42][%csl LRc7,LRe7]} Nd5 {[%emt 0:00:47]} 32. Rxd5 {[%emt 0:01:02][%mdl 64] [#] Remove Defender} cxd5 {[%emt 0:00:09]} (32... Qxd5 $16 {was worth a try.} 33. Qxd5 cxd5) 33. Qxc7 $18 {[%emt 0:00:05]} Ree8 {[%emt 0:01:16]} 34. Qf4 {[%emt 0:04:34]} ({White should try} 34. Qa5 $18) 34... Qxf4 $16 {[%emt 0:00:30]} 35. gxf4 {[%emt 0:00:08]} Rac8 {[%emt 0:00:02] [#]} 36. Rc5 {[%emt 0:01:07]} ({White should play} 36. Rd1 $1 $16) 36... Rxc5 $11 {[%emt 0:00:56] The position is equal.} 37. bxc5 {[%emt 0:00:02] Strongly threatening Bc3.} Rb8 $1 {[%emt 0:00:25]} 38. Bc3 {[%emt 0:01:11]} Rb5 {[%emt 0:00:36]} 39. Bd4 {[%emt 0:00:20] Hoping for f5.} Ra5 {[%emt 0:00:24]} 40. c6 {[%emt 0:00:00] c7 would kill now.} Rxa2 {[%emt 0:00:00] White must now prevent ...Rc2.} 41. c7 {[%emt 0:02:38]} Rc2 {[%emt 0:02:31]} 42. Bb6 {[%emt 0:00:23] Nf1 is the strong threat.} Kf7 {[%emt 0:05:59]} 43. Nf1 {[%emt 0:00:50] Threatens to win with f5.} f5 {Weighted Error Value: White=0.17 (very precise) /Black=0.16 (very precise)} (43... Rxf2 44. c8=Q (44. c8=R Rxf1+ 45. Kg2 Rb1 $18) 44... Kg6 45. Qe8+ {[%mdl 64] Deflection} Kh7 46. Ng3 Rb2 47. Qf7 Rxb6 48. Nxh5) 1/2-1/2

[Event "Polish Youth B18 Championship 2023"]
[Site "Jastrzebia Gora"]
[Date "2023.03.13"]
[Round "2.14"]
[White "Grzesik, Gracjan"]
[Black "Smetek, Michal"]
[Result "1-0"]
[ECO "B13"]
[WhiteElo "2149"]
[BlackElo "1787"]
[Annotator "TA"]
[PlyCount "101"]
[EventDate "2023.03.11"]
[EventType "swiss"]
[EventCountry "POL"]
[SourceTitle "playchess.com"]
[Source "ChessBase"]
[SourceQuality "1"]
[TimeControl "40/5400+30:1800+30"]

{[%evp 15,101,31,31,27,16,22,32,29,20,20,41,43,52,36,29,13,154,150,157,154,142,159,179,152,145,159,177,179,167,152,253,262,277,236,238,246,256,238,451,439,444,462,515,510,520,515,489,508,550,560,550,547,547,536,539,393,400,0,527,373,508,408,399,393,633,562,758,759,797,662,795,822,890,866,29965,29962,29975,29976,29975,29968,29987,29977,29977,29978,29978,29974,6183,5751]} 1. e4 {[%emt 0:00:23]} c6 {[%emt 0:00:37]} 2. d4 {[%emt 0:00:24]} d5 {[%emt 0:00:05]} 3. exd5 {[%emt 0:00:25]} cxd5 {[%emt 0:00:07]} 4. Bd3 {[%emt 0:00:05]} Nc6 {[%emt 0:00:37]} 5. c3 {[%emt 0:00:02]} g6 {[%emt 0:02:35]} 6. Bf4 {[%emt 0:05:05]} Bg7 {[%emt 0:02:44]} 7. h3 {[%emt 0:00:58]} Nf6 {[%emt 0:01:29]} 8. Nf3 {[%emt 0:00:10]} Bf5 {[%emt 0:03:15]} 9. Be2 {[%emt 0:07:17] B13: Caro-Kann: Exchange Variation and Panov-Botvinnik Attack.} O-O {[%emt 0:04:12]} 10. O-O {[%emt 0:00:56]} a6 {[%emt 0:11:33]} 11. Nbd2 {[%emt 0:03:51] White is slightly better.} Ne4 {[%emt 0:03:54]} 12. Re1 {[%emt 0:12:06]} Nxd2 {[%emt 0:09:23]} 13. Qxd2 {[%emt 0:01:10]} Re8 {[%emt 0:06:45] [#]} 14. Bh6 $146 {[%emt 0:17:32]} ({Predecessor:} 14. g4 Bd7 15. Bf1 Na5 16. b3 Rc8 17. Ne5 Nc6 18. Bg2 Nxe5 19. Bxe5 e6 20. Bxg7 Kxg7 {½-½ Kaczur,F (2478)-Medvegy,Z (2533) HUN-ch qual 68th 2019 (1.1)}) 14... Be4 {[%emt 0:04:14]} 15. Nh2 {[%emt 0:03:39][%cal Bf3h2,Bh2f1,Bf1g3][%mdl 32]} b5 {[%emt 0:17:48]} (15... Bxh6 $11 16. Qxh6 e5) 16. Bxg7 $16 {[%emt 0:10:04]} Kxg7 {[%emt 0:00:09] [#]} 17. g4 $1 {[%emt 0:01:34]} (17. Ng4 $6 f6 $14) ({Don't do} 17. a4 $6 b4 $14) 17... g5 {[%emt 0:09:02]} 18. Qxg5+ {[%emt 0:00:57]} Kh8 {[%emt 0:00:10]} 19. Nf1 {[%emt 0:07:57]} f6 {[%emt 0:01:59]} 20. Qh6 {[%emt 0:02:39]} Bg6 {[%emt 0:01:28]} 21. f4 {[%emt 0:04:53][%cal Bf2f4,Bf4f5][%mdl 32]} Rg8 {[%emt 0:04:18]} 22. Ng3 {[%emt 0:01:43]} Be4 {[%emt 0:03:08]} (22... Qd6 $16 23. Kg2 Be4+ 24. Nxe4 dxe4) 23. f5 $18 {[%emt 0:02:08]} Rg5 {[%emt 0:05:52]} 24. h4 {[%emt 0:02:40]} Rg7 {[%emt 0:01:12]} 25. Qf4 {[%emt 0:01:55]} ({But not} 25. Nh5 $6 Rg8) 25... Qd7 {[%emt 0:00:45]} 26. Kf2 {[%emt 0:04:53]} e5 $2 {[%emt 0:02:12]} (26... Rf8 {is a better defense.} 27. Nxe4 dxe4 28. Qxe4 Qd6) 27. fxe6 {[%emt 0:01:32]} Qxe6 {[%emt 0:00:04]} 28. Bf3 {[%emt 0:00:44]} Ne5 {[%emt 0:01:17]} 29. dxe5 {[%emt 0:04:42]} fxe5 {[%emt 0:00:02]} 30. Rxe4 {[%emt 0:00:13]} dxe4 {[%emt 0:01:36]} 31. Qxe4 {[%emt 0:00:03]} Rd8 {[%emt 0:01:18]} 32. Nf5 {[%emt 0:01:43]} Rgd7 {[%emt 0:01:47]} 33. Re1 {[%emt 0:01:13]} Rd2+ {[%emt 0:00:46]} 34. Kg3 {[%emt 0:01:14]} Re8 {[%emt 0:00:22]} 35. Qb7 {[%emt 0:00:37][%csl Gf5][%cal Rb7g7]} Rg8 {[%emt 0:00:37] Inhibits Qg7+.} 36. Qe4 {[%emt 0:00:30]} Re8 $1 {[%emt 0:00:23]} 37. Qb4 {[%emt 0:00:32]} Rg8 {[%emt 0:00:24]} 38. Kh3 {[%emt 0:00:29]} h5 {[%emt 0:00:34]} 39. Qe4 {[%emt 0:00:30] Wards off Rd3. aiming for g5.} Re8 $2 {[%emt 0:00:43]} (39... hxg4+ 40. Bxg4 Qd5 41. Qxe5+ Qxe5 42. Rxe5 Rf8) 40. gxh5 {[%emt 0:00:00]} Qb6 {[%emt 0:00:00]} 41. Re2 {[%emt 0:05:30]} Rxe2 {[%emt 0:05:06]} 42. Bxe2 {[%emt 0:00:56]} Qf6 {[%emt 0:06:56]} 43. Bd3 {[%emt 0:02:24][%cal Of5d6] Intending Nd6! and mate.} Qe6 {[%emt 0:04:38] Inhibits .} 44. Qb7 {[%emt 0:09:25][%csl Gf5][%cal Rb7g7]} Qf6 {[%emt 0:03:08] Repels Qg7+} 45. Be4 {[%emt 0:03:16]} Rd8 {[%emt 0:01:10]} 46. h6 {[%emt 0:01:35]} Rg8 {[%emt 0:01:10]} 47. Qc7 {[%emt 0:03:54]} Qe6 {[%emt 0:07:08] [#]} 48. Qg7+ $3 {[%emt 0:02:25][%mdl 512]} Rxg7 {[%emt 0:00:19]} 49. hxg7+ {[%emt 0:00:04]} Kh7 {[%emt 0:00:42] [#]} 50. g8=Q+ $1 {[%emt 0:00:12][%mdl 512]} Kxg8 {[%emt 0:01:29] [#]} 51. Bd5 $1 {[%emt 0:00:07][%mdl 576] Decoy. Beautiful play by Grzesik!   Weighted Error Value: White=0.52/Black=0.35} 1-0

[Event "Polish Youth B18 Championship 2023"]
[Site "Jastrzebia Gora"]
[Date "2023.03.13"]
[Round "2.15"]
[White "Paprocki, Antoni"]
[Black "Kotowicz, Kamil"]
[Result "0-1"]
[ECO "A40"]
[WhiteElo "2255"]
[BlackElo "1828"]
[Annotator "TA"]
[PlyCount "62"]
[EventDate "2023.03.11"]
[EventType "swiss"]
[EventCountry "POL"]
[SourceTitle "playchess.com"]
[Source "ChessBase"]
[SourceQuality "1"]
[TimeControl "40/5400+30:1800+30"]

{[%evp 13,61,0,12,0,29,38,29,22,24,33,28,33,0,0,57,36,64,24,33,40,36,37,46,22,27,0,18,-208,-206,-272,-266,-239,-207,-544,-533,-550,-544,-542,-547,-540,-525,-29995,-29996,-29996,-29997,-29997,-29998,-29998,-29999,-29999]} 1. d4 Nf6 2. c4 e6 3. g3 Bb4+ 4. Nd2 c5 5. a3 Bxd2+ 6. Qxd2 cxd4 7. Nf3 Nc6 8. Nxd4 {E00: Catalan Bogo-Indian (3 g3 Bb4+).} O-O 9. Bg2 d5 {[#]} 10. b4 $146 {White has an edge.} ({Predecessor:} 10. O-O Qb6 11. Rd1 Bd7 12. cxd5 exd5 13. b3 Rfe8 14. Bb2 Ne4 15. Qf4 Nxd4 16. Bxd4 Qxb3 {1-0 Gareyev,T (2573)-Thavandiran,S (2420) Titled Tuesday intern op 01st Mar Late blitz 2022 (9)}) 10... Ne5 11. cxd5 exd5 12. O-O Re8 13. Qc2 Be6 (13... Ne4 $11) 14. Bg5 Rc8 {[%cal Ba8c8,Bc8c4,Bc4c2][%mdl 32]} 15. Qb3 (15. Qa4 $5 {[%cal Ra4a7]}) 15... h6 16. Bxf6 Qxf6 17. Rac1 (17. Bxd5 $2 Bxd5 18. Qxd5 Rcd8 19. Qxb7 Rxd4 $19) 17... a6 18. e3 (18. Bxd5 $2 Bxd5 19. Qxd5 Rcd8 20. Qxb7 Rxd4 $19) 18... Rc4 19. Rcd1 Rec8 20. f4 $2 {[#] Now White is beyond hope.} (20. Qa2 $11 {and White stays safe.}) 20... Ng4 $1 $19 {Strongly threatening ...Rc3.} 21. f5 Bd7 {White must now prevent ...Rc3.} 22. Ne2 {Inhibits Rc3.} (22. Bxd5 Rc3 23. Bxf7+ Qxf7 24. Qxf7+ Kxf7 $19) 22... Rc2 ({And not} 22... Bxf5 23. Bxd5 (23. Rxd5 g6 $15) 23... Bc2 24. Qxc4 (24. Qa2 Qe5 $17) 24... Rxc4 25. Rxf6 Nxf6 26. Bxc4 $11) 23. Nd4 (23. Nf4) 23... R2c3 24. Qxd5 Ba4 25. Ne2 Bxd1 26. Nxc3 Qxc3 ({Stronger than} 26... Rxc3 27. Rxd1 b5 28. Qd8+ Qxd8 29. Rxd8+ Kh7 30. Bf3 $11) 27. Rxd1 Qxe3+ {Black mates.} 28. Kh1 Nf2+ {[%cal Bg4f2,Bf2h3,Bh3f2][%mdl 32]} (28... Qxa3 $2 {perishes.} 29. Qd2 $19) 29. Kg1 Nh3+ {[%mdl 64] Discovered Attack (Double check)} 30. Kh1 {[#]} Qg1+ $3 {[%mdl 512]} 31. Rxg1 Nf2# {Beautiful play by Kotowicz!   Weighted Error Value: White=0.65/Black=0.10 (very precise)} 0-1